bitfinex/quotes_ETHUSD_20250519
["timestamp","ask_amount","ask_price","bid_price","bid_amount"]
[1747676303892,0.55,2522.3,2521.6,9.008]
[1747676304094,3.96557877,2521.7,2521.6,9.008]
[1747676306614,0.55,2522.3,2521.6,9.008]
[1747676306909,3.96556061,2521.8,2521.7,8.0]
[1747676307089,3.96530936,2521.9,2521.6,9.008]
[1747676307289,3.96554906,2521.8,2521.6,9.008]
[1747676307486,3.96481206,2522.2,2521.6,9.008]
[1747676307679,3.96589331,2521.5,2521.4,9.372]
[1747676307879,3.96589331,2521.5,2520.8,0.33372478]
[1747676307880,3.96651234,2521.2,2521.0,10.4297]
[1747676308102,3.96652254,2521.1,2521.0,9.008]
[1747676308412,3.96649984,2521.2,2520.9,17.008]
[1747676308576,3.96589331,2521.5,2520.9,9.008]
[1747676308777,3.96667988,2521.0,2520.9,9.008]
[1747676308981,3.96667988,2521.0,2520.8,0.33372478]
[1747676308982,3.96683724,2520.9,2520.8,0.33372478]
[1747676309392,3.95953749,2520.9,2520.8,0.33372478]
[1747676309720,5.90712765,2520.9,2520.8,0.33372478]
[1747676310012,13.90712765,2520.9,2520.8,0.33372478]
[1747676310177,13.85753749,2520.9,2520.8,0.33372478]
[1747676310638,13.85753749,2520.9,2519.7,26.132]
[1747676310639,3.9680965,2520.1,2519.7,26.132]
[1747676311416,3.96138413,2520.1,2519.7,26.132]
[1747676312614,3.96138413,2520.1,2519.7,17.123]
[1747676312800,3.96138413,2520.1,2519.7,26.134]
[1747676313117,3.96841144,2519.9,2519.8,0.00789614]
[1747676315195,3.9680965,2520.1,2519.8,0.00789614]
[1747676315400,3.96841144,2519.9,2519.8,0.00789614]
[1747676316002,3.96872643,2519.7,2519.6,0.00789614]
[1747676316987,7.89663039,2519.7,2519.6,0.00789614]
[1747676317226,9.24463039,2519.7,2519.6,0.00789614]
[1747676319224,3.96392803,2519.3,2519.2,0.00789614]
[1747676321909,3.96392803,2519.3,2519.0,0.00789614]
[1747676322110,3.96956857,2519.2,2519.0,0.00789614]
[1747676322522,3.96958753,2519.2,2519.0,0.00789614]
[1747676322719,3.96894047,2519.6,2519.0,8.00789614]
[1747676322926,5.31610675,2520.1,2519.1,1.443]
[1747676323233,3.9688115,2519.7,2519.3,8.0]
[1747676323547,3.96788949,2520.3,2519.6,1.443]
[1747676323860,3.96833984,2520.0,2519.7,0.9443]
[1747676324146,3.96843935,2519.9,2519.7,0.9443]
[1747676325123,8.18345244,2520.4,2519.8,0.00789614]
[1747676325124,3.96834181,2520.0,2519.8,0.00789614]
[1747676325325,3.96834181,2520.0,2519.9,8.97]
[1747676325505,6.83545244,2520.4,2519.9,8.97]
[1747676325732,3.96804294,2520.2,2519.9,9.96221961]
[1747676325937,3.96812329,2520.1,2519.9,9.96221961]
[1747676326134,3.96825396,2520.0,2519.9,17.96221961]
[1747676326333,3.96730937,2520.6,2519.9,17.96221961]
[1747676326538,3.96747143,2520.5,2520.0,11.21411157]
[1747676326740,1.348,2521.0,2520.0,11.21411157]
[1747676326741,3.96709587,2520.8,2520.0,11.21411157]
[1747676327049,3.96652254,2521.1,2520.4,1.4171]
[1747676327222,1.348,2521.4,2520.6,8.0]
[1747676327729,1.348,2521.4,2520.5,8.97]
[1747676327730,3.9670965,2520.8,2520.0,20.18311157]
[1747676328074,3.9680965,2520.1,2520.0,9.42499614]
[1747676328410,3.966987,2520.9,2520.0,9.42499614]
[1747676328733,3.92790396,2521.0,2520.0,9.42499614]
[1747676328945,3.96802765,2520.2,2520.0,9.42499614]
[1747676329139,3.96799978,2520.2,2520.0,16.97689614]
[1747676329453,3.9677856,2520.3,2520.0,20.38808575]
[1747676330243,3.96795173,2520.2,2520.0,20.38808575]
[1747676330563,3.96795173,2520.2,2520.0,8.97689614]
[1747676330564,3.9680965,2520.1,2520.0,8.97689614]
[1747676330761,3.9680965,2520.1,2520.0,0.00789614]
[1747676332268,1.348,2520.5,2520.0,9.50749614]
[1747676332433,3.9680965,2520.1,2520.0,8.00789614]
[1747676332639,3.9680965,2520.1,2520.0,0.00789614]
[1747676333957,5.8660965,2520.1,2520.0,0.00789614]
[1747676334125,5.8660965,2520.1,2519.5,0.00789614]
[1747676334126,3.96888394,2519.6,2519.5,0.00789614]
[1747676336052,5.31688394,2519.6,2519.5,0.00789614]
[1747676336461,9.29440923,2519.6,2519.5,0.00789614]
[1747676336631,9.7947879,2519.6,2519.5,0.00789614]
[1747676337164,0.55,2520.0,2519.0,1.4226]
[1747676337465,5.15653927,2520.1,2519.1,0.94304961]
[1747676337668,1.1883,2520.4,2519.6,1.4226]
[1747676337855,3.92790396,2520.7,2519.1,8.94304961]
[1747676337856,1.1883,2521.3,2519.9,1.4226]
[1747676338176,3.92790396,2521.2,2520.0,8.97]
[1747676338373,5.1552946,2520.8,2519.9,1.4226]
[1747676338666,3.96794248,2520.2,2520.0,8.0]
[1747676339047,3.96773761,2520.4,2520.0,8.0]
[1747676339240,3.96715198,2520.7,2520.0,8.0]
[1747676339443,5.15531701,2520.8,2520.0,8.0]
[1747676339635,1.1883,2520.8,2520.0,13.80750554]
[1747676339860,3.9673238,2520.6,2520.0,13.80745107]
[1747676340163,3.9677181,2520.4,2520.0,9.84715614]
[1747676340669,3.96748314,2520.5,2520.0,13.81540731]
[1747676340670,3.96754065,2520.5,2520.0,13.81540731]
[1747676341164,3.96662143,2521.1,2520.5,3.96745866]
[1747676341463,3.96662823,2521.1,2520.7,8.0]
[1747676341770,3.96681144,2521.0,2520.8,8.969]
[1747676342062,3.96681144,2521.0,2520.4,18.4892]
[1747676342063,1.1883,2521.1,2520.4,1.3552]
[1747676342372,1.1883,2521.1,2520.0,1.84715614]
[1747676342373,3.96793905,2520.2,2520.1,8.969]
[1747676342567,3.9680965,2520.1,2520.0,0.00789614]
[1747676342932,1.1883,2520.9,2520.0,0.00789614]
[1747676343264,1.23790171,2520.9,2520.0,0.00789614]
[1747676343468,3.96773776,2520.4,2520.0,1.70548575]
[1747676343773,3.96754674,2520.5,2520.0,5.67372522]
[1747676344231,3.9673963,2520.6,2520.1,5.32328643]
[1747676344430,3.96751371,2520.5,2520.1,1.3552]
[1747676345768,3.96703658,2520.8,2520.1,1.3552]
[1747676345967,3.96793905,2520.2,2520.1,1.3552]
[1747676346264,3.9680965,2520.1,2520.0,0.00789614]
[1747676346471,3.92790396,2520.7,2520.0,0.00789614]
[1747676346644,3.96762418,2520.4,2520.0,0.00789614]
[1747676346847,3.96711722,2520.8,2520.0,0.00789614]
[1747676347371,3.9678009,2520.3,2520.0,0.00789614]
[1747676347589,3.96722266,2520.7,2520.0,0.00789614]
[1747676347590,3.9680965,2520.1,2520.0,0.00789614]
[1747676347730,7.89600046,2520.1,2520.0,0.00789614]
[1747676348245,8.44600046,2520.1,2520.0,0.00789614]
[1747676349058,3.96839497,2520.0,2519.2,0.00789614]
[1747676349366,3.96896991,2519.6,2519.3,8.0]
[1747676349777,1.1883,2520.3,2519.3,1.4446]
[1747676350079,3.96819752,2520.1,2519.5,11.96904147]
[1747676350235,3.92790396,2520.2,2519.3,9.4446]
[1747676350430,3.96825396,2520.0,2519.6,8.0]
[1747676350637,7.89537073,2520.5,2519.8,8.0]
[1747676350638,3.96746677,2520.5,2519.8,8.0]
[1747676350969,3.9673519,2520.6,2520.3,1.4446]
[1747676351185,3.96746689,2520.5,2520.3,1.4446]
[1747676351394,3.966964,2520.9,2520.4,8.0]
[1747676351595,3.966964,2520.9,2520.4,11.96748736]
[1747676351875,3.96683036,2521.0,2520.4,11.96760597]
[1747676352047,3.96686786,2520.9,2520.4,11.96760597]
[1747676352248,3.96730937,2520.6,2520.5,1.92164608]
[1747676352441,3.92790396,2521.2,2520.3,1.4446]
[1747676352787,3.9680965,2520.1,2520.0,10.24499614]
[1747676353557,3.96798143,2520.2,2520.0,10.24499614]
[1747676353756,3.96779039,2520.3,2520.0,10.24499614]
[1747676353976,3.9680965,2520.1,2520.0,10.24499614]
[1747676355290,1.1883,2520.9,2520.1,8.0]
[1747676355525,3.96750289,2520.5,2520.1,8.0]
[1747676355682,3.96734525,2520.6,2520.1,11.96804175]
[1747676356316,1.1883,2521.2,2520.4,1.3244]
[1747676356477,3.96693526,2520.9,2520.5,8.0]
[1747676356817,5.15427269,2521.5,2520.7,8.0]
[1747676356988,5.11620396,2521.8,2520.8,1.3244]
[1747676357185,3.96660509,2521.1,2520.8,1.3244]
[1747676357400,3.96608198,2521.4,2520.8,9.3244]
[1747676357575,3.96675495,2521.0,2520.8,1.3244]
[1747676357776,3.96675495,2521.0,2520.8,2.25684]
[1747676358413,3.96683724,2520.9,2520.8,2.25684]
[1747676359415,3.96683724,2520.9,2520.8,19.17784]
[1747676359781,3.96618235,2521.4,2520.8,19.17784]
[1747676359782,3.96661199,2521.1,2520.8,19.17784]
[1747676360209,3.96573604,2521.6,2520.9,8.0]
[1747676360410,3.96607103,2521.4,2520.9,13.79237044]
[1747676360584,3.96596013,2521.5,2520.9,9.825684]
[1747676360785,3.96526428,2521.9,2521.2,1.4105]
[1747676361013,3.9662079,2521.3,2521.2,1.4105]
[1747676361733,3.96612598,2521.4,2521.2,1.4105]
[1747676362578,3.9662079,2521.3,2521.2,1.4105]
[1747676363074,3.9668249,2521.0,2520.9,1.4105]
[1747676364182,3.9668249,2521.0,2520.7,17.131]
[1747676364183,3.9669946,2520.8,2520.7,17.131]
[1747676365278,3.95540906,2520.8,2520.7,17.131]
[1747676366017,3.9680965,2520.1,2520.0,1.37639614]
[1747676366216,3.9680965,2520.1,2520.0,0.00789614]
[1747676366217,4.0176973,2520.1,2520.0,0.00789614]
[1747676366403,3.9680965,2520.1,2520.0,0.00789614]
[1747676367422,3.96775675,2520.4,2520.1,1.3743]
[1747676367720,3.96770319,2520.4,2520.2,8.0]
[1747676368122,1.1661,2521.0,2520.1,11.20451961]
[1747676368123,3.96793905,2520.2,2520.1,11.20451961]
[1747676368517,3.96793905,2520.2,2520.1,1.3743]
[1747676369081,3.96793905,2520.2,2520.0,8.92789614]
[1747676369082,3.9680965,2520.1,2520.0,0.00789614]
[1747676369288,3.96800972,2520.2,2520.0,0.00789614]
[1747676370531,3.96803975,2520.2,2520.0,0.00789614]
[1747676370720,3.9680965,2520.1,2520.0,0.00789614]
[1747676371189,4.51683724,2520.9,2520.0,0.00789614]
[1747676371385,3.96794436,2520.2,2520.0,0.00789614]
[1747676371589,3.96794436,2520.2,2520.0,2.0975342]
[1747676371792,3.9680965,2520.1,2520.0,0.00789614]
[1747676372124,3.96802531,2520.2,2520.0,0.00789614]
[1747676372331,3.96794155,2520.2,2520.0,0.00789614]
[1747676372491,3.9680965,2520.1,2520.0,0.00789614]
[1747676373136,3.96776588,2520.4,2520.0,0.00789614]
[1747676373325,1.1661,2521.0,2520.0,2.09753632]
[1747676373496,3.96771847,2520.4,2520.1,1.4237]
[1747676373911,3.96778648,2520.3,2520.1,1.4237]
[1747676374906,3.96793905,2520.2,2520.1,1.4237]
[1747676375106,3.9680965,2520.1,2520.0,0.00789614]
[1747676375406,3.9680965,2520.1,2520.0,8.92889614]
[1747676376239,3.9680965,2520.1,2520.0,9.95997575]
[1747676376440,3.9680965,2520.1,2520.0,0.00789614]
[1747676376628,4.01769931,2520.1,2520.0,0.00789614]
[1747676376839,3.9680965,2520.1,2520.0,0.00789614]
[1747676377043,4.01770492,2520.1,2520.0,0.00789614]
[1747676377357,5.73380492,2520.1,2520.0,0.00789614]
[1747676379117,3.96904147,2519.5,2519.4,0.00789614]
[1747676379326,4.0186569,2519.5,2519.4,0.00789614]
[1747676379520,3.96904147,2519.5,2519.4,0.00789614]
[1747676380022,4.01865913,2519.5,2519.4,0.00789614]
[1747676380423,3.96222303,2519.5,2519.4,0.00789614]
[1747676382269,3.96951413,2519.2,2519.1,0.00789614]
[1747676383442,3.96944495,2519.3,2519.1,0.00789614]
[1747676383667,3.96912872,2519.5,2519.1,2.74616575]
[1747676384042,3.96867669,2519.8,2519.2,9.348]
[1747676384237,3.96896067,2519.6,2519.2,9.348]
[1747676384549,3.96904147,2519.5,2519.2,9.348]
[1747676385075,3.96895087,2519.6,2519.2,9.348]
[1747676385280,3.96879785,2519.7,2519.3,1.61427123]
[1747676385448,3.96834134,2520.0,2519.3,1.61427123]
[1747676385774,3.96852745,2519.9,2519.4,13.39882186]
[1747676385976,1.1661,2520.4,2519.5,8.881]
[1747676385977,3.96888394,2519.6,2519.5,8.881]
[1747676386139,3.96216457,2519.6,2519.5,8.881]
[1747676386870,3.96216457,2519.6,2519.5,10.87349712]
[1747676387094,1.1661,2520.4,2519.5,10.87349712]
[1747676387239,3.96843968,2519.9,2519.6,8.0]
[1747676387690,3.96872643,2519.7,2519.5,10.87349712]
[1747676387858,3.96888394,2519.6,2519.5,8.881]
[1747676388243,3.9609878,2519.6,2519.5,8.881]
[1747676389078,3.9609878,2519.6,2519.4,1.4297]
[1747676389079,3.96904147,2519.5,2519.4,1.4297]
[1747676389398,3.96935656,2519.3,2519.2,1.3542]
[1747676389550,3.96935656,2519.3,2519.2,10.2352]
[1747676389745,3.9696717,2519.1,2518.9,1.3542]
[1747676389956,3.96982929,2519.0,2518.9,1.3542]
[1747676390275,3.96913446,2519.5,2519.0,5.32395969]
[1747676390445,3.96890622,2519.6,2519.2,8.0]
[1747676390643,3.96881763,2519.7,2519.3,1.3542]
[1747676390841,3.96868685,2519.8,2519.3,5.32346621]
[1747676391045,3.96888929,2519.6,2519.3,1.3542]
[1747676391284,3.96841144,2519.9,2519.3,1.3542]
[1747676391452,3.96951413,2519.2,2519.1,8.0]
[1747676391648,3.96951413,2519.2,2519.1,16.881]
[1747676391857,3.96262365,2519.2,2519.1,16.881]
[1747676392263,3.96904147,2519.5,2519.1,16.881]
[1747676392476,3.96866224,2519.8,2519.1,20.41812]
[1747676392477,3.9694267,2519.3,2519.1,20.41812]
[1747676392693,3.96932323,2519.4,2519.1,20.41812]
[1747676393384,3.96909681,2519.5,2519.1,20.41812]
[1747676393582,3.96909681,2519.5,2519.1,24.38777557]
[1747676393767,3.96910529,2519.5,2519.1,20.41812]
[1747676393968,1.1661,2520.0,2519.3,1.3463]
[1747676394168,1.1661,2520.3,2519.4,11.9691146]
[1747676394395,3.96867133,2519.8,2519.4,8.0]
[1747676394610,3.9687481,2519.7,2519.4,8.0]
[1747676394801,3.96867133,2519.8,2519.3,1.3463]
[1747676395003,3.96880058,2519.7,2519.4,0.90711414]
[1747676395307,3.96867133,2519.8,2519.4,0.90711414]
[1747676395308,3.9689063,2519.6,2519.4,0.90711414]
[1747676396211,3.96904147,2519.5,2519.4,0.90711414]
[1747676396362,3.96896255,2519.6,2519.5,8.882]
[1747676396561,3.96803284,2520.2,2519.5,8.882]
[1747676396868,3.96865467,2519.8,2519.6,0.97891141]
[1747676397073,3.96872643,2519.7,2519.6,0.97891141]
[1747676397991,3.9687019,2519.8,2519.6,0.97891141]
[1747676398199,0.6782,2520.4,2519.7,1.1835]
[1747676398409,6.91899089,2520.6,2519.7,1.1835]
[1747676398696,3.96792521,2520.3,2519.8,1.01624114]
[1747676398864,3.96792521,2520.3,2519.9,8.0]
[1747676399062,4.64541043,2520.7,2519.7,1.1835]
[1747676399063,3.96730937,2520.6,2519.7,1.1835]
[1747676399270,3.96872643,2519.7,2519.6,8.881]
[1747676399469,3.96935656,2519.3,2519.2,8.881]
[1747676399675,3.96935656,2519.3,2519.2,16.881]
[1747676400075,3.96935656,2519.3,2519.2,8.881]
[1747676400273,3.96927631,2519.4,2519.2,8.881]
[1747676400478,3.96926436,2519.4,2519.2,8.881]
[1747676400904,3.96904257,2519.5,2519.2,8.881]
[1747676401106,3.96933382,2519.4,2519.2,8.881]
[1747676401288,3.96951413,2519.2,2519.1,9.21472478]
[1747676402204,0.6782,2519.9,2519.2,13.1713056]
[1747676402397,3.96864106,2519.8,2519.4,3.96917466]
[1747676402591,3.96833581,2520.0,2519.5,3.96902561]
[1747676402792,3.96833581,2520.0,2519.7,8.0]
[1747676402995,0.6782,2520.5,2519.7,8.0]
[1747676403167,3.96856893,2519.8,2519.7,8.0]
[1747676403519,3.96872643,2519.7,2519.6,1.2018]
[1747676403685,3.96872643,2519.7,2519.6,9.2018]
[1747676403871,3.96790105,2520.3,2519.6,11.89108]
[1747676404077,3.96839154,2520.0,2519.6,11.89108]
[1747676404395,3.96839154,2520.0,2519.7,8.0]
[1747676404620,3.96842666,2519.9,2519.7,8.0]
[1747676405217,3.96762418,2520.4,2519.7,8.0]
[1747676405402,3.96794675,2520.2,2519.8,1.989108]
[1747676405597,0.6782,2520.5,2519.8,1.989108]
[1747676405912,3.96841144,2519.9,2519.8,1.989108]
[1747676406314,3.96833018,2520.0,2519.8,16.881]
[1747676406517,3.96818457,2520.1,2519.8,16.881]
[1747676406815,3.96754405,2520.5,2520.0,1.2493]
[1747676407021,3.96764184,2520.4,2520.1,8.0]
[1747676407225,3.96773075,2520.4,2519.9,3.96832287]
[1747676407410,0.6782,2520.4,2519.5,8.0]
[1747676407722,3.96833597,2520.0,2519.5,13.77783842]
[1747676407917,3.9683808,2520.0,2519.5,9.80883]
[1747676408079,3.96847727,2519.9,2519.5,9.80883]
[1747676408984,4.25797322,2520.7,2519.5,9.80883]
[1747676408985,3.96683724,2520.9,2519.9,8.0]
[1747676409201,0.6782,2521.0,2520.1,8.0]
[1747676409202,3.96774891,2520.4,2520.1,8.0]
[1747676409399,0.6782,2521.0,2520.2,2.8464]
[1747676409585,3.96757256,2520.5,2520.2,2.8464]
[1747676409813,3.96719353,2520.7,2520.2,2.8464]
[1747676410000,3.96757808,2520.5,2520.2,2.8464]
[1747676410821,3.96778102,2520.4,2520.2,2.8464]
[1747676411022,3.96762425,2520.4,2520.2,1.1625]
[1747676411327,3.96762425,2520.4,2520.3,8.838]
[1747676412433,3.96762425,2520.4,2520.2,1.1625]
[1747676412643,3.96762425,2520.4,2520.3,8.838]
[1747676413011,3.96726941,2520.7,2520.3,8.838]
[1747676413225,3.96756258,2520.5,2520.3,8.838]
[1747676413729,3.96762418,2520.4,2520.3,8.838]
[1747676413939,0.6782,2521.0,2520.4,8.0]
[1747676414106,0.6782,2521.3,2520.4,8.0]
[1747676414434,3.9677113,2520.4,2520.2,1.1625]
[1747676414642,3.96754262,2520.5,2520.3,16.837]
[1747676414807,3.96702633,2520.8,2520.3,18.63695]
[1747676415140,3.96669799,2521.0,2520.3,18.63695]
[1747676415292,3.96742583,2520.6,2520.3,18.63695]
[1747676415707,3.96720249,2520.7,2520.3,18.63695]
[1747676415934,3.96757192,2520.5,2520.3,18.63695]
[1747676416225,3.96692919,2520.9,2520.4,13.94748931]
[1747676416427,3.96696962,2520.9,2520.4,13.94752625]
[1747676416614,4.64446863,2521.3,2520.4,9.979945]
[1747676416615,0.6782,2521.3,2520.4,9.979945]
[1747676416793,3.95938098,2521.2,2520.3,8.837]
[1747676417000,3.96778161,2520.3,2520.2,1.1625]
[1747676417333,3.96636522,2521.2,2520.3,8.0]
[1747676417504,3.96741808,2520.6,2520.3,8.0]
[1747676417709,3.96683724,2520.9,2520.3,8.0]
[1747676418035,3.96755399,2520.5,2520.2,9.9995]
[1747676418334,3.96746677,2520.5,2520.2,9.9995]
[1747676418530,4.51619492,2521.4,2520.3,1.79995]
[1747676418843,3.96776531,2520.4,2520.2,1.1625]
[1747676419011,3.96778161,2520.3,2520.2,1.1625]
[1747676419214,3.96778161,2520.3,2520.2,9.9995]
[1747676419540,3.96793905,2520.2,2520.0,17.133]
[1747676419724,0.6782,2520.2,2519.5,1.59272478]
[1747676420036,3.9680353,2520.2,2519.9,1.259]
[1747676420238,4.64539315,2520.7,2519.9,9.259]
[1747676420534,3.96804445,2520.2,2519.9,9.259]
[1747676420722,3.96804445,2520.2,2519.9,1.259]
[1747676420723,3.96825396,2520.0,2519.9,1.259]
[1747676420910,3.96818287,2520.1,2519.9,10.096]
[1747676421444,3.96771511,2520.4,2520.0,8.0]
[1747676421735,0.6782,2521.0,2520.0,8.0]
[1747676421954,3.9680965,2520.1,2519.9,1.259]
[1747676422104,3.96872643,2519.7,2519.5,1.91651844]
[1747676422310,3.96872643,2519.7,2519.6,16.837]
[1747676422506,3.96867985,2519.8,2519.7,8.0]
[1747676422859,3.96867985,2519.8,2519.6,11.44973895]
[1747676423172,3.96778392,2520.3,2519.7,8.0]
[1747676423453,3.96857149,2519.8,2519.7,8.0]
[1747676423604,3.9685022,2519.9,2519.7,8.0]
[1747676425148,3.96834139,2520.0,2519.7,10.00125184]
[1747676425337,3.96842218,2519.9,2519.7,10.00125184]
[1747676425536,3.96842218,2519.9,2519.8,16.837]
[1747676426135,3.96888394,2519.6,2519.4,1.1653]
[1747676426339,3.96919901,2519.4,2519.3,17.131]
[1747676426534,3.96919901,2519.4,2519.3,25.968]
[1747676426711,3.96916597,2519.5,2519.3,25.968]
[1747676427237,3.96919901,2519.4,2519.3,25.968]
[1747676427444,3.96919901,2519.4,2519.3,17.131]
[1747676427649,3.96951413,2519.2,2519.1,9.17072478]
[1747676429471,3.96951413,2519.2,2519.1,0.33372478]
[1747676429741,4.01913794,2519.2,2519.1,0.33372478]
[1747676430116,3.96951413,2519.2,2519.1,0.33372478]
[1747676430310,9.30746088,2519.2,2519.1,0.33372478]
[1747676430516,3.97093277,2518.3,2518.2,0.40179701]
[1747676430757,4.63223277,2518.3,2518.2,0.40179701]
[1747676431815,9.3088944,2518.3,2518.2,0.40179701]
[1747676432026,17.25924867,2518.3,2518.2,0.40179701]
[1747676432429,4.63223277,2518.3,2518.2,0.40179701]
[1747676432614,0.6613,2518.7,2518.2,0.40179701]
[1747676432810,3.97093277,2518.3,2518.2,0.40179701]
[1747676433041,5.23187951,2518.3,2518.2,0.40179701]
[1747676433953,5.18223277,2518.3,2518.2,0.40179701]
[1747676434567,4.63223277,2518.3,2518.2,0.40179701]
[1747676434768,3.97093277,2518.3,2518.2,0.40179701]
[1747676435257,3.97093277,2518.3,2517.9,0.44145965]
[1747676435258,3.97067301,2518.5,2517.9,8.842]
[1747676435442,3.97101948,2518.3,2517.9,8.842]
[1747676436012,3.97077509,2518.4,2517.9,12.81356196]
[1747676436013,3.97084883,2518.4,2517.9,12.81356196]
[1747676436217,3.97072497,2518.5,2518.0,3.97138189]
[1747676436519,3.97061743,2518.5,2518.0,8.0]
[1747676436718,3.97080818,2518.4,2518.1,8.842]
[1747676437181,3.97070277,2518.5,2518.1,8.842]
[1747676438291,0.6613,2518.9,2518.1,8.842]
[1747676438580,3.97039814,2518.7,2518.3,9.1609]
[1747676438881,3.9701011,2518.9,2518.4,3.97077509]
[1747676439078,0.6613,2519.2,2518.3,5.13174552]
[1747676439266,7.13360933,2519.4,2518.3,1.1609]
[1747676439579,3.96983407,2519.0,2518.5,3.97052585]
[1747676439873,7.13360933,2519.4,2518.7,8.0]
[1747676440073,3.97005524,2518.9,2518.7,8.0]
[1747676440278,3.97005524,2518.9,2518.7,16.803]
[1747676440443,3.96980486,2519.1,2518.7,16.803]
[1747676440444,3.96989554,2519.0,2518.7,16.803]
[1747676440644,7.13360933,2519.4,2518.3,9.1609]
[1747676440645,3.97037506,2518.7,2518.3,9.1609]
[1747676440845,3.97037506,2518.7,2518.4,8.803]
[1747676441076,3.9341265,2519.2,2518.4,8.803]
[1747676441376,3.97015883,2518.8,2518.4,12.77375213]
[1747676441581,3.97015883,2518.8,2518.3,14.53335475]
[1747676441582,3.97017974,2518.8,2518.6,8.0]
[1747676441747,0.6613,2518.8,2518.3,1.40161805]
[1747676442108,3.9341265,2518.6,2517.6,17.139]
[1747676442259,3.97172134,2517.8,2517.6,17.139]
[1747676442460,3.97187909,2517.7,2517.6,17.139]
[1747676442861,3.97187909,2517.7,2517.6,25.139]
[1747676443095,3.97124816,2518.1,2517.6,17.139]
[1747676443394,3.97187909,2517.7,2517.6,17.139]
[1747676444298,3.97167538,2517.9,2517.2,8.803]
[1747676444498,3.97167538,2517.9,2517.6,1.1628]
[1747676444798,3.97165111,2517.9,2517.6,1.1628]
[1747676444977,3.97179968,2517.8,2517.6,1.1628]
[1747676445699,3.97164192,2517.9,2517.6,1.1628]
[1747676446199,3.97127356,2518.1,2517.6,1.89319856]
[1747676446400,3.97140773,2518.0,2517.6,1.89319856]
[1747676446601,3.97140773,2518.0,2517.7,16.804]
[1747676446781,3.9713058,2518.1,2517.7,16.804]
[1747676446976,3.97100035,2518.3,2517.8,3.97167613]
[1747676446977,3.97100687,2518.3,2517.8,3.97167613]
[1747676447362,3.97118196,2518.2,2517.7,20.7757998]
[1747676447567,3.97118196,2518.2,2517.7,23.43991253]
[1747676448203,3.97125151,2518.1,2517.7,19.46811273]
[1747676448699,3.97142407,2518.0,2517.7,19.46811273]
[1747676448910,3.97059399,2518.6,2517.7,16.804]
[1747676449067,3.97098882,2518.3,2517.8,3.97170453]
[1747676449269,3.96982929,2519.0,2518.2,8.0]
[1747676449473,3.9710368,2518.3,2518.0,1.2412]
[1747676449698,3.97078292,2518.4,2518.1,8.805]
[1747676449906,3.97068813,2518.5,2518.1,11.00677391]
[1747676450299,3.97068813,2518.5,2518.2,8.805]
[1747676450618,3.97055159,2518.6,2518.2,8.805]
[1747676450822,3.97062699,2518.5,2518.2,8.805]
[1747676451116,0.71093443,2518.5,2517.7,1.2412]
[1747676451271,3.97093277,2518.3,2517.7,1.2412]
[1747676451466,3.97164716,2517.9,2517.7,1.2412]
[1747676451671,3.97172134,2517.8,2517.7,1.2412]
[1747676452591,3.97164088,2517.9,2517.7,1.2412]
[1747676452769,3.97172134,2517.8,2517.7,1.2412]
[1747676452967,3.97162132,2517.9,2517.7,1.2412]
[1747676453206,3.97172134,2517.8,2517.7,1.2412]
[1747676454312,3.97172134,2517.8,2517.2,3.9726158]
[1747676454313,0.6613,2518.0,2517.2,1.2146]
[1747676454472,3.97235242,2517.4,2517.3,8.805]
[1747676455391,3.97266804,2517.2,2517.1,17.146]
[1747676457005,3.97298371,2517.0,2516.9,9.40082645]
[1747676457901,3.97298371,2517.0,2516.9,9.10705062]
[1747676457902,21.60708371,2517.0,2516.9,9.10705062]
[1747676458480,12.80108371,2517.0,2516.9,9.10705062]
[1747676458681,21.60708371,2517.0,2516.9,9.10705062]
[1747676462611,4.25266279,2516.0,2515.9,9.66253444]
[1747676463838,4.25266279,2516.0,2514.6,3.97663345]
[1747676463839,11.97756652,2514.1,2513.9,10.18595041]
[1747676463987,16.06544126,2514.0,2513.9,10.18595041]
[1747676464192,17.75997683,2514.0,2513.9,10.18595041]
[1747676464426,12.52804121,2513.8,2512.9,14.35701223]
[1747676464644,11.9793076,2513.0,2512.9,14.14966014]
[1747676464797,16.06702412,2513.0,2512.9,14.14966014]
[1747676465187,4.5293076,2513.0,2512.9,14.14966014]
[1747676465411,4.57905879,2513.0,2512.9,14.14966014]
[1747676465728,3.9793076,2513.0,2512.9,14.14966014]
[1747676466023,4.5293076,2513.0,2512.9,14.14966014]
[1747676466239,3.9793076,2513.0,2512.9,14.14966014]
[1747676467526,18.4883076,2513.0,2512.9,14.14966014]
[1747676468083,4.5293076,2513.0,2512.9,14.14966014]
[1747676468290,3.9793076,2513.0,2512.9,14.14966014]
[1747676469320,3.9793076,2513.0,2512.9,10.4476584]
[1747676469645,11.9793076,2513.0,2512.9,10.4476584]
[1747676470446,3.9793076,2513.0,2512.9,10.4476584]
[1747676473447,4.82839937,2513.8,2512.9,12.34447172]
[1747676473448,3.9790756,2513.2,2512.9,12.34447172]
[1747676473611,3.97878702,2513.4,2512.9,12.34447172]
[1747676473816,17.80459821,2514.7,2513.0,8.0]
[1747676474148,17.176,2514.7,2513.2,8.0]
[1747676474348,3.97578302,2515.3,2512.9,12.34447172]
[1747676474349,3.97843512,2513.6,2513.4,8.0]
[1747676474695,3.97766084,2514.1,2513.5,1.78435]
[1747676474962,3.9780083,2513.9,2513.5,1.78435]
[1747676475524,3.97645936,2514.8,2513.7,8.0]
[1747676475725,3.97738439,2514.3,2513.8,8.792]
[1747676476050,3.97595441,2515.2,2514.0,1.1352]
[1747676476363,3.97756652,2514.1,2514.0,1.1352]
[1747676476710,3.97680038,2514.6,2513.6,1.1489]
[1747676476913,3.97819946,2513.7,2513.6,1.1489]
[1747676477116,0.55,2514.7,2513.6,1.1489]
[1747676477312,3.97677563,2514.6,2513.6,1.1489]
[1747676477565,3.97582697,2515.2,2513.7,0.51273354]
[1747676477763,3.97742191,2514.2,2513.8,8.791]
[1747676477968,3.97801438,2513.9,2513.6,1.1489]
[1747676478130,3.97796285,2513.9,2513.6,1.1489]
[1747676478315,3.97661748,2514.7,2513.6,1.1489]
[1747676478511,8.0,2515.2,2514.0,3.97769663]
[1747676478767,8.0,2515.0,2514.0,9.18876966]
[1747676479059,3.97725419,2514.3,2513.6,1.1489]
[1747676479268,3.97819946,2513.7,2513.6,1.1489]
[1747676479449,3.97812663,2513.8,2513.6,1.1489]